[Event "European Online Club-ch-G 2021"]
[Site "Online"]
[Date "2021.03.27"]
[Round "8.12"]
[White "Hasanzade, Toghrul"]
[Black "Shchekachev, Andrei"]
[Result "1/2-1/2"]
[ECO "B08"]
[WhiteElo "2322"]
[BlackElo "2515"]
[Annotator "ChessBase"]
[PlyCount "89"]
[EventDate "2021.03.27"]
[EventType "team-tourn"]
[EventCountry "NET"]
[SourceTitle "playchess.com"]
[Source "ChessBase"]
[SourceQuality "1"]
[TimeControl "900+5"]

1. e4 {[%emt 0:00:00]} Nc6 {[%emt 0:00:04]} 2. Nf3 {[%emt 0:00:07]} d6 {[%emt 0:00:03]} 3. d4 {[%emt 0:00:10]} Nf6 {[%emt 0:00:03]} 4. h3 {[%emt 0:00:13]} g6 {[%emt 0:00:16]} 5. Nc3 {[%emt 0:00:06]} Bg7 {[%emt 0:00:03]} 6. Be3 {[%emt 0:00:24]} a6 {[%emt 0:00:09]} 7. Be2 {[%emt 0:00:33]} O-O {[%emt 0:00:04]} 8. O-O {[%emt 0:00:12]} e5 {[%emt 0:00:03]} 9. dxe5 {[%emt 0:00:04]} dxe5 {[%emt 0:00:04]} 10. a3 {[%emt 0:00:43]} b6 {[%emt 0:04:53]} 11. Bc4 {[%emt 0:00:14]} Bb7 {[%emt 0:00:22]} 12. Qe2 {[%emt 0:01:43]} Nd4 {[%emt 0:00:47]} 13. Nxd4 {[%emt 0:00:12]} exd4 {[%emt 0:00:04]} 14. Rad1 {[%emt 0:00:03]} c5 {[%emt 0:00:54]} 15. Bg5 {[%emt 0:00:13]} h6 {[%emt 0:00:56]} 16. Bxf6 {[%emt 0:00:52]} Qxf6 {[%emt 0:00:05]} 17. Nd5 {[%emt 0:00:14]} Qd6 {[%emt 0:00:30]} 18. c3 {[%emt 0:00:19]} b5 {[%emt 0:00:33]} 19. Ba2 {[%emt 0:00:08]} Rae8 {[%emt 0:00:07]} 20. cxd4 {[%emt 0:00:14]} Bxd4 {[%emt 0:01:42]} 21. Rfe1 {[%emt 0:01:00]} Qe5 {[%emt 0:00:57]} 22. Rd2 {[%emt 0:01:13]} c4 {[%emt 0:01:10]} 23. Qd1 {[%emt 0:01:09]} Bxb2 {[%emt 0:01:31]} 24. f4 {[%emt 0:01:04]} Qg7 {[%emt 0:00:03]} 25. e5 {[%emt 0:00:53]} Bxd5 {[%emt 0:00:08]} 26. Rxd5 {[%emt 0:00:02]} Bxa3 {[%emt 0:00:03]} 27. Rd7 {[%emt 0:00:02]} Be7 {[%emt 0:00:25]} 28. Qf3 {[%emt 0:00:31]} Bc5+ {[%emt 0:00:15]} 29. Kh1 {[%emt 0:00:21]} Rd8 {[%emt 0:00:20]} 30. Red1 {[%emt 0:00:47]} Rxd7 {[%emt 0:00:12]} 31. Rxd7 {[%emt 0:00:02]} Re8 {[%emt 0:00:10]} 32. Qd5 {[%emt 0:00:30]} Qf8 {[%emt 0:00:06]} 33. Bb1 {[%emt 0:00:07]} Re7 {[%emt 0:00:27]} 34. Rd8 {[%emt 0:00:06]} Re8 {[%emt 0:00:02]} 35. Rxe8 {[%emt 0:00:13]} Qxe8 {[%emt 0:00:02]} 36. Qxc5 {[%emt 0:00:02]} Qd8 {[%emt 0:00:06]} 37. Be4 {[%emt 0:00:13]} Qd2 {[%emt 0:00:13]} 38. Bd5 {[%emt 0:01:44]} Qxf4 {[%emt 0:00:06]} 39. e6 {[%emt 0:00:11]} fxe6 {[%emt 0:00:07]} 40. Bxe6+ {[%emt 0:00:10]} Kg7 {[%emt 0:00:03]} 41. Qe7+ {[%emt 0:00:02]} Kh8 {[%emt 0:00:02]} 42. Qe8+ {[%emt 0:00:59]} Kg7 {[%emt 0:00:02]} 43. Qe7+ {[%emt 0:00:04]} Kh8 {[%emt 0:00:02]} 44. Qe8+ {[%emt 0:00:18]} Kg7 {[%emt 0:00:02]} 45. Qe7+ {[%emt 0:00:04]} 1/2-1/2

[Event "European Online Club-ch-G 2021"]
[Site "Online"]
[Date "2021.03.27"]
[Round "8.13"]
[White "Bartel, Mateusz"]
[Black "Borhy, Marcell"]
[Result "1-0"]
[ECO "B27"]
[WhiteElo "2635"]
[BlackElo "2392"]
[Annotator "ChessBase"]
[PlyCount "57"]
[EventDate "2021.03.27"]
[EventType "team-tourn"]
[EventCountry "NET"]
[SourceTitle "playchess.com"]
[Source "ChessBase"]
[SourceQuality "1"]
[TimeControl "900+5"]

1. e4 {[%emt 0:00:00]} c5 {[%emt 0:00:16]} 2. Nf3 {[%emt 0:00:16]} b6 {[%emt 0:00:08]} 3. Bc4 {[%emt 0:00:47]} Bb7 {[%emt 0:00:05]} 4. O-O {[%emt 0:00:01]} e6 {[%emt 0:00:10]} 5. Re1 {[%emt 0:00:06]} a6 {[%emt 0:00:10]} 6. c3 {[%emt 0:00:10]} Nf6 {[%emt 0:00:21]} 7. e5 {[%emt 0:00:30]} Nd5 {[%emt 0:00:04]} 8. d4 {[%emt 0:00:01]} b5 {[%emt 0:00:25]} 9. Bd3 {[%emt 0:00:06]} cxd4 {[%emt 0:01:34]} 10. cxd4 {[%emt 0:00:03]} Be7 {[%emt 0:00:03]} 11. Nc3 {[%emt 0:00:43]} d6 {[%emt 0:00:32]} 12. exd6 {[%emt 0:00:26]} Qxd6 {[%emt 0:00:33]} 13. a4 {[%emt 0:00:02]} bxa4 {[%emt 0:01:14]} 14. Ne4 {[%emt 0:00:09]} Qb6 {[%emt 0:00:15]} 15. Ne5 {[%emt 0:00:07]} Nc6 {[%emt 0:00:20]} 16. Qg4 {[%emt 0:01:34]} g6 {[%emt 0:00:52]} 17. Nxf7 {[%emt 0:00:48]} Kxf7 {[%emt 0:00:21]} 18. Ng5+ {[%emt 0:00:10]} Ke8 {[%emt 0:01:26]} 19. Qxe6 {[%emt 0:02:26]} Nd8 {[%emt 0:00:08]} 20. Qg4 {[%emt 0:01:03]} Kf8 {[%emt 0:00:58]} 21. Ne6+ {[%emt 0:00:36]} Nxe6 {[%emt 0:00:08]} 22. Rxe6 {[%emt 0:00:00]} Qb3 {[%emt 0:01:14]} 23. Bh6+ {[%emt 0:00:34]} Ke8 {[%emt 0:00:02]} 24. Qe2 {[%emt 0:00:20]} Kd7 {[%emt 0:00:54]} 25. Bc2 {[%emt 0:00:45]} Qb4 {[%emt 0:00:04]} 26. Bxa4+ {[%emt 0:00:07]} Kc8 {[%emt 0:01:23]} 27. Qe5 {[%emt 0:01:17]} Rg8 {[%emt 0:01:11]} 28. Rc1+ {[%emt 0:00:12]} Kd8 {[%emt 0:00:01]} 29. Bg5 {[%emt 0:00:03]} 1-0

[Event "European Online Club-ch-G 2021"]
[Site "Online"]
[Date "2021.03.27"]
[Round "8.14"]
[White "Krstulovic, Alex"]
[Black "Gumularz, Szymon"]
[Result "1/2-1/2"]
[ECO "D02"]
[WhiteElo "2387"]
[BlackElo "2517"]
[Annotator "ChessBase"]
[PlyCount "83"]
[EventDate "2021.03.27"]
[EventType "team-tourn"]
[EventCountry "NET"]
[SourceTitle "playchess.com"]
[Source "ChessBase"]
[SourceQuality "1"]
[TimeControl "900+5"]

1. d4 {[%emt 0:00:00]} Nf6 {[%emt 0:00:03]} 2. Nf3 {[%emt 0:00:03]} d5 {[%emt 0:00:05]} 3. Bf4 {[%emt 0:00:02]} c5 {[%emt 0:00:02]} 4. e3 {[%emt 0:00:03]} Nc6 {[%emt 0:00:01]} 5. Nbd2 {[%emt 0:00:02]} cxd4 {[%emt 0:00:05]} 6. exd4 {[%emt 0:00:03]} Bf5 {[%emt 0:00:02]} 7. Bb5 {[%emt 0:00:34]} e6 {[%emt 0:00:48]} 8. Ne5 {[%emt 0:01:16]} Qb6 {[%emt 0:00:09]} 9. c4 {[%emt 0:00:04]} dxc4 {[%emt 0:02:45]} 10. Bxc6+ {[%emt 0:00:44]} bxc6 {[%emt 0:00:02]} 11. Ndxc4 {[%emt 0:00:01]} Qb4+ {[%emt 0:00:20]} 12. Bd2 {[%emt 0:00:31]} Qb5 {[%emt 0:00:03]} 13. O-O {[%emt 0:01:29]} Be7 {[%emt 0:00:09]} 14. a4 {[%emt 0:00:12]} Qa6 {[%emt 0:00:04]} 15. Rc1 {[%emt 0:00:46]} Be4 {[%emt 0:00:25]} 16. Bg5 {[%emt 0:02:09]} Rd8 {[%emt 0:01:28]} 17. Qe2 {[%emt 0:00:51]} Qxa4 {[%emt 0:00:21]} 18. Bxf6 {[%emt 0:00:41]} gxf6 {[%emt 0:00:03]} 19. Qxe4 {[%emt 0:00:07]} fxe5 {[%emt 0:00:02]} 20. dxe5 {[%emt 0:00:34]} Qb5 {[%emt 0:00:08]} 21. Rfd1 {[%emt 0:00:26]} Rd5 {[%emt 0:00:20]} 22. Ne3 {[%emt 0:01:51]} Rxe5 {[%emt 0:00:17]} 23. Qd4 {[%emt 0:00:06]} O-O {[%emt 0:02:34]} 24. Ng4 {[%emt 0:00:30]} Rh5 {[%emt 0:00:02]} 25. Qxa7 {[%emt 0:00:48]} Qg5 {[%emt 0:00:40]} 26. Rc3 {[%emt 0:00:40]} Kh8 {[%emt 0:00:18]} 27. Rg3 {[%emt 0:00:11]} Qh4 {[%emt 0:00:47]} 28. Qe3 {[%emt 0:01:12]} Rg8 {[%emt 0:02:28]} 29. Qc3+ {[%emt 0:00:51]} f6 {[%emt 0:00:20]} 30. h3 {[%emt 0:00:26]} Rc5 {[%emt 0:00:06]} 31. Qf3 {[%emt 0:00:08]} Rf5 {[%emt 0:00:29]} 32. Qxc6 {[%emt 0:00:07]} Bc5 {[%emt 0:00:01]} 33. Rf3 {[%emt 0:00:06]} Rfg5 {[%emt 0:02:07]} 34. Qxe6 {[%emt 0:00:03]} R5g6 {[%emt 0:00:06]} 35. Rf1 {[%emt 0:00:12]} h5 {[%emt 0:00:01]} 36. Rxf6 {[%emt 0:00:02]} Qg5 {[%emt 0:00:10]} 37. Rxg6 {[%emt 0:00:02]} Rxg6 {[%emt 0:00:01]} 38. Qc8+ {[%emt 0:00:01]} Rg8 {[%emt 0:00:02]} 39. Qd7 {[%emt 0:00:08]} hxg4 {[%emt 0:00:01]} 40. Qxg4 {[%emt 0:00:01]} Qxg4 {[%emt 0:00:03]} 41. hxg4 {[%emt 0:00:00]} Rxg4 {[%emt 0:00:01]} 42. Rc1 {[%emt 0:00:02]} 1/2-1/2

[Event "European Online Club-ch-G 2021"]
[Site "Online"]
[Date "2021.03.27"]
[Round "8.15"]
[White "Mastrovasilis, Dimitrios"]
[Black "Juhasz, Agoston"]
[Result "1-0"]
[ECO "B15"]
[WhiteElo "2609"]
[BlackElo "2356"]
[Annotator "ChessBase"]
[PlyCount "67"]
[EventDate "2021.03.27"]
[EventType "team-tourn"]
[EventCountry "NET"]
[SourceTitle "playchess.com"]
[Source "ChessBase"]
[SourceQuality "1"]
[TimeControl "900+5"]

1. e4 {[%emt 0:00:00]} c6 {[%emt 0:00:06]} 2. d4 {[%emt 0:00:05]} d5 {[%emt 0:00:03]} 3. Nd2 {[%emt 0:00:13]} dxe4 {[%emt 0:00:08]} 4. Nxe4 {[%emt 0:00:03]} Nf6 {[%emt 0:00:07]} 5. Nxf6+ {[%emt 0:00:03]} exf6 {[%emt 0:00:01]} 6. c3 {[%emt 0:00:02]} Bd6 {[%emt 0:00:05]} 7. Bd3 {[%emt 0:00:03]} O-O {[%emt 0:00:03]} 8. Ne2 {[%emt 0:00:02]} Re8 {[%emt 0:00:03]} 9. O-O {[%emt 0:00:03]} Nd7 {[%emt 0:00:03]} 10. Bf4 {[%emt 0:00:32]} Nf8 {[%emt 0:00:08]} 11. Qd2 {[%emt 0:00:43]} Bg4 {[%emt 0:00:44]} 12. Ng3 {[%emt 0:00:30]} Ng6 {[%emt 0:01:10]} 13. Bxd6 {[%emt 0:01:00]} Qxd6 {[%emt 0:00:04]} 14. f4 {[%emt 0:02:20]} Bd7 {[%emt 0:02:29]} 15. f5 {[%emt 0:00:35]} Nf8 {[%emt 0:00:16]} 16. Rf3 {[%emt 0:02:56]} g5 {[%emt 0:05:08]} 17. fxg6 {[%emt 0:03:26]} fxg6 {[%emt 0:00:35]} 18. Ne4 {[%emt 0:00:05]} Rxe4 {[%emt 0:00:12]} 19. Bxe4 {[%emt 0:00:00]} Re8 {[%emt 0:00:03]} 20. Bc2 {[%emt 0:00:18]} Qe7 {[%emt 0:00:17]} 21. Rff1 {[%emt 0:00:18]} Qf7 {[%emt 0:00:35]} 22. Rae1 {[%emt 0:00:49]} Be6 {[%emt 0:00:04]} 23. Bb3 {[%emt 0:00:14]} Bxb3 {[%emt 0:01:11]} 24. Rxe8 {[%emt 0:00:09]} Qxe8 {[%emt 0:00:03]} 25. axb3 {[%emt 0:00:02]} Qf7 {[%emt 0:00:08]} 26. Qe2 {[%emt 0:00:27]} a6 {[%emt 0:00:43]} 27. b4 {[%emt 0:00:20]} Nd7 {[%emt 0:01:20]} 28. Re1 {[%emt 0:00:16]} Kf8 {[%emt 0:00:24]} 29. Qe3 {[%emt 0:00:18]} Nb6 {[%emt 0:00:09]} 30. Qf4 {[%emt 0:00:27]} Nd5 {[%emt 0:00:29]} 31. Qd6+ {[%emt 0:00:11]} Ne7 {[%emt 0:00:14]} 32. Re6 {[%emt 0:00:16]} Ke8 {[%emt 0:00:19]} 33. Qb8+ {[%emt 0:00:09]} Kd7 {[%emt 0:00:04]} 34. Rd6# {[%emt 0:00:02]} 1-0

[Event "European Online Club-ch-G 2021"]
[Site "Online"]
[Date "2021.03.27"]
[Round "8.16"]
[White "Ongut, Tamas Gunes"]
[Black "Wieczorek, Oskar"]
[Result "0-1"]
[ECO "E90"]
[WhiteElo "2314"]
[BlackElo "2498"]
[Annotator "ChessBase"]
[PlyCount "92"]
[EventDate "2021.03.27"]
[EventType "team-tourn"]
[EventCountry "NET"]
[SourceTitle "playchess.com"]
[Source "ChessBase"]
[SourceQuality "1"]
[TimeControl "900+5"]

1. d4 {[%emt 0:00:00]} Nf6 {[%emt 0:00:04]} 2. c4 {[%emt 0:00:03]} c5 {[%emt 0:00:01]} 3. d5 {[%emt 0:00:01]} g6 {[%emt 0:00:02]} 4. Nc3 {[%emt 0:00:03]} Bg7 {[%emt 0:00:01]} 5. e4 {[%emt 0:00:02]} d6 {[%emt 0:00:01]} 6. Bd3 {[%emt 0:00:07]} O-O {[%emt 0:00:02]} 7. Nf3 {[%emt 0:00:02]} e6 {[%emt 0:00:03]} 8. h3 {[%emt 0:00:01]} Na6 {[%emt 0:00:01]} 9. O-O {[%emt 0:00:06]} Nc7 {[%emt 0:00:02]} 10. Bg5 {[%emt 0:00:22]} h6 {[%emt 0:00:22]} 11. Be3 {[%emt 0:00:02]} exd5 {[%emt 0:00:24]} 12. exd5 {[%emt 0:00:05]} b5 {[%emt 0:00:06]} 13. Qd2 {[%emt 0:01:30]} bxc4 {[%emt 0:00:10]} 14. Bxc4 {[%emt 0:00:03]} Kh7 {[%emt 0:00:03]} 15. a3 {[%emt 0:02:04]} Bf5 {[%emt 0:01:01]} 16. b4 {[%emt 0:01:39]} Ne4 {[%emt 0:04:13]} 17. Nxe4 {[%emt 0:00:04]} Bxe4 {[%emt 0:00:00]} 18. bxc5 {[%emt 0:00:22]} Bxa1 {[%emt 0:02:29]} 19. Rxa1 {[%emt 0:00:17]} Bxf3 {[%emt 0:01:48]} 20. gxf3 {[%emt 0:00:04]} dxc5 {[%emt 0:01:03]} 21. Bxh6 {[%emt 0:03:17]} Qf6 {[%emt 0:01:03]} 22. Rd1 {[%emt 0:00:38]} Rfd8 {[%emt 0:00:50]} 23. Bg5 {[%emt 0:01:02]} Qxf3 {[%emt 0:00:03]} 24. Bxd8 {[%emt 0:00:02]} Rxd8 {[%emt 0:00:03]} 25. Qd3 {[%emt 0:00:06]} Qxd3 {[%emt 0:00:43]} 26. Rxd3 {[%emt 0:00:02]} Ne8 {[%emt 0:00:02]} 27. Bb5 {[%emt 0:00:28]} Nd6 {[%emt 0:00:03]} 28. a4 {[%emt 0:00:02]} Kg7 {[%emt 0:00:07]} 29. Kg2 {[%emt 0:00:08]} Kf6 {[%emt 0:00:15]} 30. f4 {[%emt 0:00:13]} Rb8 {[%emt 0:00:39]} 31. Kf3 {[%emt 0:01:13]} Ke7 {[%emt 0:00:37]} 32. Re3+ {[%emt 0:00:23]} Kd8 {[%emt 0:00:14]} 33. Rc3 {[%emt 0:00:03]} Nxb5 {[%emt 0:00:21]} 34. axb5 {[%emt 0:00:02]} Rxb5 {[%emt 0:00:00]} 35. Ke4 {[%emt 0:00:29]} Ke7 {[%emt 0:00:08]} 36. f5 {[%emt 0:01:19]} Rb4+ {[%emt 0:00:09]} 37. Ke3 {[%emt 0:00:04]} Kd6 {[%emt 0:00:03]} 38. fxg6 {[%emt 0:00:02]} fxg6 {[%emt 0:00:00]} 39. Ra3 {[%emt 0:00:03]} Kxd5 {[%emt 0:00:15]} 40. Rxa7 {[%emt 0:00:03]} Rb3+ {[%emt 0:00:03]} 41. Kf4 {[%emt 0:00:02]} Rxh3 {[%emt 0:00:02]} 42. Rg7 {[%emt 0:00:10]} Kd4 {[%emt 0:00:16]} 43. Rxg6 {[%emt 0:00:02]} c4 {[%emt 0:00:01]} 44. Rd6+ {[%emt 0:00:02]} Kc3 {[%emt 0:00:02]} 45. Ke4 {[%emt 0:00:05]} Rd3 {[%emt 0:00:06]} 46. Rc6 {[%emt 0:00:30]} Rd8 {[%emt 0:00:05]} 0-1

[Event "European Online Club-ch-G 2021"]
[Site "Online"]
[Date "2021.03.27"]
[Round "8.17"]
[White "Gazik, Viktor"]
[Black "Harvey, Marcus R"]
[Result "1-0"]
[ECO "A04"]
[WhiteElo "2542"]
[BlackElo "2440"]
[Annotator "ChessBase"]
[PlyCount "119"]
[EventDate "2021.03.27"]
[EventType "team-tourn"]
[EventCountry "NET"]
[SourceTitle "playchess.com"]
[Source "ChessBase"]
[SourceQuality "1"]
[TimeControl "900+5"]

1. e4 {[%emt 0:00:00]} e6 {[%emt 0:00:02]} 2. d3 {[%emt 0:00:05]} c5 {[%emt 0:00:02]} 3. Nf3 {[%emt 0:00:06]} Nc6 {[%emt 0:00:01]} 4. g3 {[%emt 0:00:02]} g6 {[%emt 0:00:02]} 5. Bg2 {[%emt 0:00:07]} Bg7 {[%emt 0:00:01]} 6. O-O {[%emt 0:00:01]} Nge7 {[%emt 0:00:02]} 7. Re1 {[%emt 0:00:05]} d6 {[%emt 0:00:04]} 8. c3 {[%emt 0:00:02]} e5 {[%emt 0:00:01]} 9. a3 {[%emt 0:00:02]} O-O {[%emt 0:00:03]} 10. b4 {[%emt 0:00:02]} h6 {[%emt 0:00:13]} 11. Nbd2 {[%emt 0:00:05]} Be6 {[%emt 0:00:25]} 12. Nb3 {[%emt 0:00:14]} cxb4 {[%emt 0:02:12]} 13. axb4 {[%emt 0:00:05]} a6 {[%emt 0:00:02]} 14. d4 {[%emt 0:02:09]} exd4 {[%emt 0:00:12]} 15. Nbxd4 {[%emt 0:00:22]} Bg4 {[%emt 0:00:28]} 16. Be3 {[%emt 0:00:42]} Ne5 {[%emt 0:00:05]} 17. Qb3 {[%emt 0:02:08]} Nxf3+ {[%emt 0:00:34]} 18. Nxf3 {[%emt 0:00:32]} Be6 {[%emt 0:00:27]} 19. Qb2 {[%emt 0:00:08]} Nc6 {[%emt 0:00:21]} 20. Rad1 {[%emt 0:00:09]} Qc7 {[%emt 0:00:51]} 21. Bf4 {[%emt 0:00:29]} Ne5 {[%emt 0:00:13]} 22. Nxe5 {[%emt 0:01:24]} dxe5 {[%emt 0:00:03]} 23. Be3 {[%emt 0:00:01]} Rfd8 {[%emt 0:00:17]} 24. Bf1 {[%emt 0:00:08]} Bg4 {[%emt 0:00:15]} 25. Rd5 {[%emt 0:01:22]} Be6 {[%emt 0:00:13]} 26. Rdd1 {[%emt 0:02:41]} Rxd1 {[%emt 0:00:12]} 27. Rxd1 {[%emt 0:00:00]} Rc8 {[%emt 0:00:01]} 28. Rc1 {[%emt 0:00:26]} Qc6 {[%emt 0:00:14]} 29. Qb1 {[%emt 0:00:25]} Bc4 {[%emt 0:00:09]} 30. Bg2 {[%emt 0:00:23]} Kh7 {[%emt 0:00:42]} 31. Rd1 {[%emt 0:00:06]} Be2 {[%emt 0:00:16]} 32. Rd2 {[%emt 0:00:03]} Bb5 {[%emt 0:00:11]} 33. Bh3 {[%emt 0:00:14]} Rc7 {[%emt 0:00:07]} 34. Bc5 {[%emt 0:00:06]} Qf6 {[%emt 0:01:43]} 35. Qd1 {[%emt 0:00:16]} Qg5 {[%emt 0:01:23]} 36. Rd5 {[%emt 0:00:35]} Bc4 {[%emt 0:01:59]} 37. f4 {[%emt 0:00:28]} Qf6 {[%emt 0:00:02]} 38. Rd6 {[%emt 0:00:11]} Qe7 {[%emt 0:00:01]} 39. Rc6 {[%emt 0:00:12]} bxc6 {[%emt 0:00:11]} 40. Bxe7 {[%emt 0:00:07]} Rxe7 {[%emt 0:00:00]} 41. f5 {[%emt 0:00:04]} Bf6 {[%emt 0:00:12]} 42. Qd6 {[%emt 0:00:13]} Kg7 {[%emt 0:00:01]} 43. fxg6 {[%emt 0:00:02]} fxg6 {[%emt 0:00:02]} 44. Qxc6 {[%emt 0:00:03]} Bb5 {[%emt 0:00:04]} 45. Qc5 {[%emt 0:00:07]} h5 {[%emt 0:00:16]} 46. Bf1 {[%emt 0:00:05]} Bxf1 {[%emt 0:00:22]} 47. Kxf1 {[%emt 0:00:00]} Rd7 {[%emt 0:00:01]} 48. Ke2 {[%emt 0:00:16]} Bg5 {[%emt 0:00:42]} 49. Qxe5+ {[%emt 0:00:02]} Bf6 {[%emt 0:00:01]} 50. Qc5 {[%emt 0:00:07]} Re7 {[%emt 0:00:06]} 51. Qc6 {[%emt 0:00:15]} Be5 {[%emt 0:00:14]} 52. c4 {[%emt 0:00:12]} Bc3 {[%emt 0:00:20]} 53. Qd6 {[%emt 0:00:11]} Rb7 {[%emt 0:00:26]} 54. b5 {[%emt 0:00:41]} axb5 {[%emt 0:00:06]} 55. cxb5 {[%emt 0:00:00]} Ra7 {[%emt 0:01:05]} 56. b6 {[%emt 0:00:12]} Ra2+ {[%emt 0:00:02]} 57. Kf3 {[%emt 0:00:02]} Be1 {[%emt 0:01:04]} 58. b7 {[%emt 0:00:06]} Bf2 {[%emt 0:00:12]} 59. b8=Q {[%emt 0:00:05]} Ba7 {[%emt 0:00:03]} 60. Qe7+ {[%emt 0:00:04]} 1-0

[Event "European Online Club-ch-G 2021"]
[Site "Online"]
[Date "2021.03.27"]
[Round "8.18"]
[White "Greet, Andrew N"]
[Black "Sahidi, Samir"]
[Result "0-1"]
[ECO "B12"]
[WhiteElo "2417"]
[BlackElo "2407"]
[Annotator "NA"]
[PlyCount "116"]
[EventDate "2021.03.27"]
[EventType "team-tourn"]
[EventCountry "NET"]
[SourceTitle "playchess.com"]
[Source "ChessBase"]
[SourceQuality "1"]
[TimeControl "900+5"]

1. e4 {[%emt 0:00:00]} c6 {[%emt 0:00:07]} 2. d4 {[%emt 0:00:08]} d5 {[%emt 0:00:01]} 3. e5 {[%emt 0:00:07]} Bf5 {[%emt 0:00:04]} 4. h4 {[%emt 0:00:02]} h6 {[%emt 0:00:41]} 5. g4 {[%emt 0:00:29]} Bd7 {[%emt 0:00:30]} 6. Nc3 {[%emt 0:00:07]} e6 {[%emt 0:00:04]} 7. f4 {[%emt 0:00:26]} c5 {[%emt 0:00:13]} 8. Nf3 {[%emt 0:00:05]} Nc6 {[%emt 0:00:49]} 9. Be3 {[%emt 0:00:23]} c4 {[%emt 0:01:09]} 10. h5 {[%emt 0:00:57]} Bb4 {[%emt 0:00:31]} 11. Bg2 {[%emt 0:01:21]} Bxc3+ {[%emt 0:01:09]} 12. bxc3 {[%emt 0:00:03]} Qa5 {[%emt 0:00:01]} 13. Qd2 {[%emt 0:00:23]} O-O-O {[%emt 0:00:08]} 14. O-O {[%emt 0:00:09]} Nge7 {[%emt 0:00:16]} 15. Bf2 {[%emt 0:00:14]} Kb8 {[%emt 0:01:39]} 16. Bh4 {[%emt 0:00:13]} Rdf8 {[%emt 0:00:26]} 17. Kh1 {[%emt 0:00:43]} Nc8 {[%emt 0:00:45]} 18. Ng1 {[%emt 0:00:38]} Ka8 {[%emt 0:01:17]} 19. f5 {[%emt 0:00:31]} Rhg8 {[%emt 0:00:43]} 20. Ne2 {[%emt 0:00:28]} N6e7 {[%emt 0:01:30]} 21. Bh3 {[%emt 0:00:24]} exf5 {[%emt 0:00:57]} 22. gxf5 {[%emt 0:00:08]} f6 {[%emt 0:00:03]} 23. e6 {[%emt 0:00:13]} Be8 {[%emt 0:00:16]} 24. Ng3 {[%emt 0:02:18]} Nd6 {[%emt 0:00:11]} 25. Rf3 {[%emt 0:00:34]} Ne4 {[%emt 0:00:32]} 26. Nxe4 {[%emt 0:00:10]} dxe4 {[%emt 0:00:12]} 27. Rf4 {[%emt 0:00:24]} Bxh5 {[%emt 0:00:07]} 28. Raf1 {[%emt 0:00:52]} Bf3+ {[%emt 0:00:26]} 29. R1xf3 {[%emt 0:00:42]} exf3 {[%emt 0:00:03]} 30. Rxf3 {[%emt 0:01:10]} g5 {[%emt 0:00:05]} 31. fxg6 {[%emt 0:00:23]} Qh5 {[%emt 0:00:50]} 32. Qf2 {[%emt 0:00:57]} Nxg6 {[%emt 0:00:08]} 33. e7 {[%emt 0:00:06]} Nxe7 {[%emt 0:00:18]} 34. Kh2 {[%emt 0:00:11]} Qd5 {[%emt 0:00:51]} 35. Re3 {[%emt 0:00:39]} Qd8 {[%emt 0:00:21]} 36. Be6 {[%emt 0:00:14]} Nd5 {[%emt 0:00:03]} 37. Re1 {[%emt 0:00:25]} Rg7 {[%emt 0:00:04]} 38. Qf3 {[%emt 0:00:04]} Nb6 {[%emt 0:00:07]} 39. d5 {[%emt 0:00:28]} Qd6+ {[%emt 0:00:08]} 40. Bg3 {[%emt 0:00:09]} Rxg3 {[%emt 0:00:05]} 41. Qxg3 {[%emt 0:00:01]} Qxg3+ {[%emt 0:00:01]} 42. Kxg3 {[%emt 0:00:02]} Rd8 {[%emt 0:00:02]} 43. Rd1 {[%emt 0:00:22]} Na4 {[%emt 0:00:02]} 44. d6 {[%emt 0:00:10]} Nxc3 {[%emt 0:00:03]} 45. Rf1 {[%emt 0:00:07]} Rxd6 {[%emt 0:00:06]} 46. Bxc4 {[%emt 0:00:02]} a6 {[%emt 0:00:08]} 47. Bd3 {[%emt 0:00:03]} Nxa2 {[%emt 0:00:03]} 48. Rb1 {[%emt 0:00:07]} Nc3 {[%emt 0:00:06]} 49. Rb3 {[%emt 0:00:02]} Rc6 {[%emt 0:00:01]} 50. Kf4 {[%emt 0:00:04]} Ka7 {[%emt 0:00:03]} 51. Kf5 {[%emt 0:00:02]} b5 {[%emt 0:00:02]} 52. Bf1 {[%emt 0:00:07]} Kb6 {[%emt 0:00:09]} 53. Bg2 {[%emt 0:00:04]} Rc5+ {[%emt 0:00:02]} 54. Kxf6 {[%emt 0:00:02]} Ne2 {[%emt 0:00:03]} 55. Be4 {[%emt 0:00:05]} Nd4 {[%emt 0:00:02]} 56. Rh3 {[%emt 0:00:06]} h5 {[%emt 0:00:08]} 57. c3 {[%emt 0:00:05]} Ne2 {[%emt 0:00:03]} 58. Bf3 {[%emt 0:00:05]} Rxc3 {[%emt 0:00:05]} 0-1

[Event "European Online Club-ch-G 2021"]
[Site "Online"]
[Date "2021.03.27"]
[Round "8.19"]
[White "Kostolansky, Sebastian Lukas"]
[Black "Houska, Jovanka"]
[Result "1-0"]
[ECO "B12"]
[WhiteElo "2393"]
[BlackElo "2381"]
[Annotator "NA"]
[PlyCount "95"]
[EventDate "2021.03.27"]
[EventType "team-tourn"]
[EventCountry "NET"]
[SourceTitle "playchess.com"]
[Source "ChessBase"]
[SourceQuality "1"]
[TimeControl "900+5"]

1. e4 {[%emt 0:00:00]} c6 {[%emt 0:00:02]} 2. d4 {[%emt 0:00:07]} d5 {[%emt 0:00:02]} 3. e5 {[%emt 0:00:02]} Bf5 {[%emt 0:00:05]} 4. h4 {[%emt 0:00:02]} h5 {[%emt 0:00:03]} 5. c4 {[%emt 0:00:03]} e6 {[%emt 0:00:09]} 6. Nc3 {[%emt 0:00:03]} Ne7 {[%emt 0:00:09]} 7. Nge2 {[%emt 0:00:05]} Nd7 {[%emt 0:00:07]} 8. Ng3 {[%emt 0:00:07]} Bg6 {[%emt 0:00:04]} 9. Bg5 {[%emt 0:00:07]} f6 {[%emt 0:00:07]} 10. exf6 {[%emt 0:00:22]} gxf6 {[%emt 0:00:02]} 11. Be3 {[%emt 0:00:18]} Qb6 {[%emt 0:00:16]} 12. Be2 {[%emt 0:04:05]} Qxb2 {[%emt 0:00:25]} 13. Rc1 {[%emt 0:00:29]} dxc4 {[%emt 0:00:07]} 14. Bxc4 {[%emt 0:01:17]} Nd5 {[%emt 0:00:09]} 15. Bxd5 {[%emt 0:02:00]} exd5 {[%emt 0:00:36]} 16. O-O {[%emt 0:00:04]} Bb4 {[%emt 0:01:06]} 17. Nce2 {[%emt 0:00:15]} Nb6 {[%emt 0:04:05]} 18. Nf4 {[%emt 0:00:40]} Bf7 {[%emt 0:00:04]} 19. Nd3 {[%emt 0:02:03]} Qa3 {[%emt 0:00:03]} 20. Nxb4 {[%emt 0:00:22]} Qxb4 {[%emt 0:00:03]} 21. Bd2 {[%emt 0:00:02]} Qf8 {[%emt 0:02:21]} 22. Re1+ {[%emt 0:00:57]} Kd7 {[%emt 0:00:14]} 23. Qf3 {[%emt 0:00:41]} Re8 {[%emt 0:02:41]} 24. Rxe8 {[%emt 0:00:05]} Bxe8 {[%emt 0:00:01]} 25. Re1 {[%emt 0:01:00]} Nc4 {[%emt 0:00:32]} 26. Qf5+ {[%emt 0:00:51]} Kd8 {[%emt 0:00:05]} 27. Bf4 {[%emt 0:00:13]} Qf7 {[%emt 0:01:41]} 28. Bb8 {[%emt 0:00:34]} Rf8 {[%emt 0:01:24]} 29. Qf4 {[%emt 0:00:12]} b6 {[%emt 0:00:07]} 30. Nf5 {[%emt 0:00:03]} Qd7 {[%emt 0:00:07]} 31. Re7 {[%emt 0:00:13]} Qxe7 {[%emt 0:00:04]} 32. Nxe7 {[%emt 0:00:02]} Kxe7 {[%emt 0:00:01]} 33. Bxa7 {[%emt 0:00:10]} Bd7 {[%emt 0:00:07]} 34. Qc7 {[%emt 0:00:04]} Rc8 {[%emt 0:00:19]} 35. Qb7 {[%emt 0:00:01]} Nd6 {[%emt 0:00:02]} 36. Qxb6 {[%emt 0:00:06]} Ra8 {[%emt 0:00:02]} 37. Qc7 {[%emt 0:00:07]} Rc8 {[%emt 0:00:02]} 38. Qa5 {[%emt 0:00:05]} Ra8 {[%emt 0:00:01]} 39. Qe1+ {[%emt 0:00:03]} Kf7 {[%emt 0:00:03]} 40. Bc5 {[%emt 0:00:02]} Ne4 {[%emt 0:00:01]} 41. Qe2 {[%emt 0:00:02]} Kg6 {[%emt 0:00:36]} 42. f3 {[%emt 0:00:07]} Nxc5 {[%emt 0:00:01]} 43. dxc5 {[%emt 0:00:10]} Kf7 {[%emt 0:00:08]} 44. Qc2 {[%emt 0:00:05]} Kg7 {[%emt 0:00:02]} 45. a4 {[%emt 0:00:02]} Bc8 {[%emt 0:00:06]} 46. Qb3 {[%emt 0:00:05]} Kf7 {[%emt 0:00:09]} 47. Qb6 {[%emt 0:00:02]} Rxa4 {[%emt 0:00:03]} 48. Qc7+ {[%emt 0:00:02]} 1-0